bitfinex-derivatives/quotes_ETHF0:USTF0_20240917
["timestamp","ask_amount","ask_price","bid_price","bid_amount"]
[1726584314410,8.64722193,2350.2,2349.9,0.42548]
[1726584314598,5.5185,2350.2,2349.7,2.4351]
[1726584314801,5.5185,2350.2,2349.7,4.7491]
[1726584315008,0.42547,2350.0,2349.7,4.15945311]
[1726584315217,5.94394,2350.2,2349.8,0.4255]
[1726584315406,5.5185,2350.2,2350.1,0.42544]
[1726584315607,3.2078,2350.2,2349.8,1.29884311]
[1726584315805,3.2078,2350.2,2350.1,0.42544]
[1726584316209,0.21190248,2350.5,2350.2,0.42541]
[1726584316210,0.63728248,2350.5,2350.2,0.42541]
[1726584316509,4.27131,2350.4,2350.1,1.29884311]
[1726584316706,10.06085,2350.7,2350.1,1.29884311]
[1726584316707,0.42542,2350.3,2350.1,1.29884311]
[1726584316902,0.42543,2350.2,2350.1,1.29884311]
[1726584317108,0.42542,2350.3,2350.1,1.29884311]
[1726584317309,4.27124,2350.5,2350.1,1.29884311]
[1726584317310,0.42543,2350.2,2350.1,1.29884311]
[1726584317509,0.42542,2350.3,2350.1,1.29884311]
[1726584317711,0.42543,2350.2,2350.1,1.29884311]
[1726584318822,0.42554,2349.6,2349.4,3.2078]
[1726584319114,0.42552,2349.7,2349.6,0.42553]
[1726584319320,0.42562,2349.2,2348.8,0.42567]
[1726584319510,0.64274312,2349.2,2348.8,0.42567]
[1726584319705,0.21713312,2349.2,2348.8,1.29884311]
[1726584320107,0.64275312,2349.2,2348.8,1.72452311]
[1726584320525,6.4998,2349.3,2348.8,1.29884311]
[1726584320526,2.4098,2349.3,2348.8,1.29884311]
[1726584320816,2.4098,2349.3,2348.9,2.3613]
[1726584321012,2.4098,2349.3,2349.0,0.42563]
[1726584321424,2.4098,2349.3,2349.0,1.29884311]
[1726584321425,2.62380446,2349.3,2349.0,1.29884311]
[1726584321812,0.42561,2349.2,2349.0,1.29884311]
[1726584322216,2.8354,2349.3,2349.0,1.29884311]
[1726584322416,2.4098,2349.3,2349.1,0.42563]
[1726584322622,2.4098,2349.3,2349.0,1.72448311]
[1726584323233,2.4098,2349.3,2349.1,0.42562]
[1726584323428,2.4098,2349.3,2349.0,1.72448311]
[1726584323634,0.21570714,2349.5,2349.2,0.42561]
[1726584323829,2.484,2349.6,2349.0,1.29884311]
[1726584324028,2.484,2349.6,2349.3,0.42558]
[1726584324335,2.90954,2349.6,2349.2,0.42559]
[1726584324527,2.484,2349.6,2349.3,0.42559]
[1726584324728,2.522,2349.9,2349.3,1.29884311]
[1726584324931,4.9397,2349.9,2349.3,1.29884311]
[1726584325129,4.9397,2349.9,2349.4,2.3393]
[1726584325432,3.2078,2350.1,2349.4,14.62943046]
[1726584325729,3.63326,2350.1,2349.7,0.42551]
[1726584325929,3.2078,2350.1,2349.7,1.29884311]
[1726584326135,7.2978,2350.1,2349.7,1.29884311]
[1726584326336,0.4255,2349.8,2349.7,1.29884311]
[1726584326635,3.6333,2349.8,2349.7,1.29884311]
[1726584326936,0.42551,2349.8,2349.7,1.29884311]
[1726584327240,2.84317,2350.0,2349.7,1.72436311]
[1726584327441,2.4177,2350.0,2349.7,1.29884311]
[1726584327924,0.42549,2349.9,2349.7,1.29884311]
[1726584328737,2.4177,2350.0,2349.7,1.29884311]
[1726584328932,0.42549,2349.9,2349.7,1.29884311]
[1726584329641,0.4255,2349.8,2349.7,1.29884311]
[1726584330134,0.42549,2349.9,2349.7,1.29884311]
[1726584330335,2.4177,2350.0,2349.7,1.29884311]
[1726584330336,0.4255,2349.8,2349.7,1.29884311]
[1726584330533,2.84317,2350.0,2349.8,0.42549]
[1726584330731,2.522,2350.4,2349.7,8.76184311]
[1726584331043,0.42541,2350.3,2350.1,0.42544]
[1726584331342,2.9474,2350.4,2349.7,5.57042311]
[1726584331544,3.2078,2350.9,2349.7,4.50664311]
[1726584331839,3.2078,2350.9,2350.2,0.42542]
[1726584331840,0.42538,2350.5,2350.2,0.42542]
[1726584332138,4.27109,2350.9,2350.1,2.4023]
[1726584332439,0.42537,2350.5,2350.2,0.42542]
[1726584332739,4.27109,2350.9,2350.2,0.42541]
[1726584332927,4.27109,2350.9,2350.2,1.72425311]
[1726584333127,0.42537,2350.6,2350.2,1.72425311]
[1726584333337,3.2078,2350.9,2350.2,1.29884311]
[1726584333539,0.42541,2350.3,2350.2,1.29884311]
[1726584334636,2.9115,2350.4,2350.2,1.29884311]
[1726584334833,2.4861,2350.4,2350.2,1.72426311]
[1726584335127,2.82948,2350.5,2350.2,1.72426311]
[1726584335329,2.4041,2350.5,2350.2,1.29884311]
[1726584335541,0.4254,2350.4,2350.2,1.29884311]
[1726584335835,2.4041,2350.5,2350.2,1.72426311]
[1726584336039,3.2078,2350.6,2350.2,8.76104311]
[1726584336232,3.2078,2350.6,2350.5,0.42537]
[1726584336437,3.2078,2350.6,2350.4,0.42538]
[1726584336631,3.2078,2350.6,2350.4,1.29884311]
[1726584336934,3.63316,2350.6,2350.4,1.29884311]
[1726584337136,3.2078,2350.6,2350.4,1.29884311]
[1726584337340,3.2078,2350.6,2350.5,0.42537]
[1726584337539,3.2078,2350.6,2350.4,1.29884311]
[1726584337744,3.2078,2350.6,2350.5,4.67977]
[1726584338242,3.2078,2350.6,2350.5,5.97861311]
[1726584339139,3.2078,2350.6,2350.5,5.55324311]
[1726584339738,3.2078,2350.6,2350.5,5.97861311]
[1726584340137,2.3882,2350.9,2350.5,14.76104311]
[1726584340342,2.4861,2351.2,2350.5,2.36226311]
[1726584340544,5.7395,2351.3,2350.7,1.06335]
[1726584340844,4.44285203,2351.6,2350.9,1.06324]
[1726584341043,4.44285203,2351.6,2350.8,9.737]
[1726584341044,0.42522,2351.4,2351.1,0.42525]
[1726584341239,0.42522,2351.4,2350.8,9.37224311]
[1726584341453,0.42523,2351.3,2351.0,0.42527]
[1726584341742,0.42523,2351.3,2351.0,1.72411311]
[1726584342046,0.42522,2351.4,2351.1,0.42526]
[1726584342545,0.42522,2351.4,2351.1,1.72410311]
[1726584342741,0.42521,2351.4,2351.1,1.72410311]
[1726584342949,2.78008,2351.6,2351.2,0.42523]
[1726584343152,2.78009,2351.6,2351.2,1.72407311]
[1726584343446,0.42519,2351.5,2351.2,1.29884311]
[1726584343839,2.3549,2351.6,2351.3,0.42522]
[1726584344039,2.3549,2351.6,2351.2,1.29884311]
[1726584344239,3.2078,2351.7,2351.2,1.29884311]
[1726584344440,3.2078,2351.7,2351.4,0.42521]
[1726584344642,3.2078,2351.7,2351.4,1.72405311]
[1726584345040,3.2078,2351.7,2351.4,1.29884311]
[1726584345240,6.18467,2351.7,2351.4,1.29884311]
[1726584345441,6.18467,2351.7,2350.8,9.7242]
[1726584345442,4.09,2351.6,2350.8,5.6342]
[1726584345645,3.2078,2351.4,2350.8,6.96984311]
[1726584345846,0.42521,2351.4,2351.0,0.42527]
[1726584346147,4.09,2351.6,2351.1,0.42526]
[1726584346148,0.4252,2351.5,2351.1,0.42526]
[1726584346449,4.09,2351.6,2351.0,1.29884311]
[1726584346647,5.7595,2351.7,2351.0,1.29884311]
[1726584346842,6.18466,2351.7,2351.0,1.29884311]
[1726584347042,9.8495,2351.7,2351.0,1.72411311]
[1726584347251,0.42523,2351.3,2351.0,1.72411311]
[1726584347447,0.42524,2351.3,2351.0,1.29884311]
[1726584347640,4.8321,2351.2,2351.0,1.72411311]
[1726584347848,4.8321,2351.2,2351.0,1.29884311]
[1726584348843,5.25735,2351.2,2351.0,1.29884311]
[1726584349044,4.8321,2351.2,2351.0,1.29884311]
[1726584349358,4.8321,2351.2,2351.0,1.72412311]
[1726584349543,4.8321,2351.2,2351.0,1.72411311]
[1726584350044,0.42516,2351.7,2351.4,0.42521]
[1726584350243,5.643,2351.8,2351.3,0.42522]
[1726584350443,0.42519,2351.6,2351.1,3.78804311]
[1726584350649,0.42519,2351.6,2351.3,0.42523]
[1726584351148,0.42521,2351.4,2351.3,1.29884311]
[1726584351351,0.42521,2351.4,2350.8,2.4632]
[1726584351559,0.42526,2351.2,2350.9,0.42529]
[1726584351758,3.2078,2351.2,2350.8,4.18735311]
[1726584352048,2.3037,2351.1,2350.9,0.4253]
[1726584352255,2.3037,2351.1,2350.8,3.76204311]
[1726584352548,1.06305,2351.4,2351.0,0.42528]
[1726584352753,5.5115,2351.5,2350.8,3.76204311]
[1726584353347,5.5115,2351.5,2351.4,0.42521]
[1726584353751,5.5115,2351.5,2351.4,1.72405311]
[1726584354058,3.2078,2351.5,2351.4,1.72405311]
[1726584354253,4.7336,2351.9,2351.4,1.72405311]
[1726584354254,5.625,2351.9,2351.6,0.42517]
[1726584354455,0.42514,2351.8,2351.5,0.42518]
[1726584354652,0.42517,2351.6,2351.5,1.29884311]
[1726584355155,9.715,2351.9,2351.5,1.29884311]
[1726584355358,0.42517,2351.6,2351.5,1.29884311]
[1726584355555,0.42516,2351.7,2351.5,1.72403311]
[1726584355855,0.42517,2351.6,2351.5,1.29884311]
[1726584357253,7.4606,2351.6,2350.7,3.2078]
[1726584357558,7.4606,2351.6,2351.0,0.42527]
[1726584357559,0.42526,2351.2,2351.0,0.42527]
[1726584357745,2.3658,2351.5,2350.8,3.76204311]
[1726584357746,0.42524,2351.3,2351.1,0.42525]
[1726584357948,2.3282,2351.4,2351.0,0.42528]
[1726584358149,2.3282,2351.4,2350.8,3.76204311]
[1726584358346,2.3282,2351.4,2351.1,0.42525]
[1726584358347,0.42524,2351.3,2351.1,0.42525]
[1726584358544,4.8421,2351.4,2350.8,3.76204311]
[1726584358545,5.26732,2351.4,2350.8,3.76204311]
[1726584358761,2.3282,2351.4,2351.3,0.42523]
[1726584359156,0.42519,2351.5,2351.3,1.29884311]
[1726584359359,0.42519,2351.5,2351.3,1.72405311]
[1726584359554,0.42521,2351.4,2351.3,1.29884311]
[1726584360453,2.3282,2351.7,2351.3,1.29884311]
[1726584360650,0.42521,2351.4,2351.3,1.72407311]
[1726584361363,1.06316,2351.2,2350.7,3.2078]
[1726584361666,5.22878,2351.1,2350.7,1.29884311]
[1726584361857,4.31333331,2351.6,2350.7,8.76024311]
[1726584362160,2.3792,2351.5,2350.9,3.2078]
[1726584362366,2.3792,2351.5,2351.0,4.9629]
[1726584362860,2.3792,2351.5,2351.1,0.42525]
[1726584363166,2.3792,2351.5,2351.0,6.26174311]
[1726584363167,0.42522,2351.4,2351.2,0.42524]
[1726584363463,2.3792,2351.5,2351.1,0.42526]
[1726584363655,0.42522,2351.4,2351.2,0.42524]
[1726584363874,0.42522,2351.4,2351.0,6.26174311]
[1726584364062,0.42522,2351.4,2351.2,0.42524]
[1726584364456,2.3792,2351.5,2351.0,2.5234]
[1726584364662,0.42525,2351.2,2351.0,4.24751311]
[1726584364864,0.42526,2351.2,2351.0,4.24752311]
[1726584365169,1.06312,2351.2,2350.9,0.4253]
[1726584365365,1.06312,2351.2,2350.8,0.42531]
[1726584365366,0.42529,2351.0,2350.8,0.42531]
[1726584365856,2.461,2351.2,2350.8,1.29884311]
[1726584366359,2.88626,2351.2,2351.0,0.42528]
[1726584366555,2.3792,2351.5,2351.1,0.42526]
[1726584366764,0.42521,2351.4,2350.9,3.2078]
[1726584366958,4.8402,2351.5,2350.8,2.36212311]
[1726584367154,0.42522,2351.4,2351.2,0.42524]
[1726584367556,4.8402,2351.5,2351.2,1.72408311]
[1726584367758,0.42523,2351.3,2351.2,1.29884311]
[1726584368570,0.42523,2351.3,2351.2,1.72409311]
[1726584368762,0.42523,2351.3,2351.2,1.29884311]
[1726584369064,7.4606,2351.3,2350.6,5.6106]
[1726584369267,0.42528,2351.0,2350.6,6.90944311]
[1726584369567,0.42526,2351.2,2351.0,0.42528]
[1726584369772,0.42526,2351.2,2351.1,0.42526]
[1726584369963,0.42524,2351.3,2351.1,1.72409311]
[1726584370161,0.42525,2351.2,2351.1,1.29884311]
[1726584370765,0.42524,2351.3,2351.1,1.72410311]
[1726584370967,0.42525,2351.2,2351.1,1.29884311]
[1726584371363,2.59390331,2351.2,2351.1,1.29884311]
[1726584371867,5.35913331,2351.2,2350.6,5.6106]
[1726584372065,0.42534,2350.7,2350.6,7.33479311]
[1726584372367,2.17240105,2351.0,2350.3,1.06351]
[1726584372368,0.42532,2350.8,2350.3,1.06351]
[1726584372565,0.42531,2350.9,2350.8,0.42531]
[1726584372866,4.65521105,2351.0,2350.4,2.5499]
[1726584373166,4.65521105,2351.0,2350.4,1.29884311]
[1726584373167,1.10918105,2350.8,2350.4,1.29884311]
[1726584373356,0.42537,2350.5,2350.4,1.29884311]
[1726584373563,1.53455105,2350.6,2350.5,0.42537]
[1726584373756,0.42537,2350.5,2350.4,1.72422311]
[1726584373963,1.10918105,2350.6,2350.4,1.29884311]
[1726584374264,1.53455105,2350.6,2350.5,0.42537]
[1726584374568,1.10918105,2350.6,2350.5,0.42537]
[1726584374766,1.10918105,2350.6,2350.2,3.2078]
[1726584374767,0.42542,2350.3,2350.2,0.42542]
[1726584374966,1.06344,2350.5,2350.3,0.4254]
[1726584374967,1.11081333,2350.5,2350.3,0.4254]
[1726584375162,1.11081333,2350.4,2350.3,1.72425311]
[1726584375367,0.42539,2350.4,2350.3,1.29884311]
[1726584375563,1.53620333,2350.4,2350.3,1.29884311]
[1726584375767,1.66277203,2350.5,2350.3,1.29884311]
[1726584375967,2.77398839,2350.5,2350.4,0.42539]
[1726584376168,2.77398839,2350.5,2350.4,1.72423311]
[1726584376169,1.11121636,2350.5,2350.4,1.72423311]
[1726584376560,1.53658636,2350.5,2350.4,1.29884311]
[1726584376960,2.08814203,2350.5,2350.4,1.29884311]
[1726584377670,0.42544,2350.1,2350.0,2.4446]
[1726584377877,1.11198152,2350.2,2350.1,0.42544]
[1726584378073,0.42543,2350.2,2350.1,1.29884311]
[1726584378574,1.5373289,2350.2,2350.1,1.29884311]
[1726584378880,1.5373189,2350.3,2350.1,1.72428311]
[1726584379073,1.5373089,2350.3,2350.1,1.29884311]
[1726584379266,1.1118989,2350.4,2350.3,0.42541]
[1726584379773,1.1118989,2350.4,2350.3,1.72424311]
[1726584379774,1.11168521,2350.4,2350.3,1.72424311]
[1726584379971,1.11168521,2350.6,2350.3,1.29884311]
[1726584380171,1.1118617,2350.7,2350.6,0.42535]
[1726584380376,4.62370229,2350.8,2350.7,0.42534]
[1726584380377,2.5304,2350.8,2350.7,0.42534]
[1726584380566,1.1118617,2350.9,2350.8,0.42532]
[1726584380765,3.6422617,2351.1,2351.0,0.42528]
[1726584381076,1.1118617,2351.2,2351.0,0.42527]
[1726584381274,1.5371117,2351.2,2351.0,1.72411311]
[1726584381570,1.1118617,2351.2,2351.1,0.42526]
[1726584381972,1.1118617,2351.3,2351.1,3.64934311]
[1726584382169,1.5371117,2351.2,2351.1,1.29884311]
[1726584382371,2.09322229,2351.2,2351.1,1.29884311]
[1726584382978,1.66797229,2351.2,2351.1,1.29884311]
[1726584383170,1.53717601,2351.2,2351.1,1.29884311]
[1726584383676,1.11208354,2351.2,2351.1,1.72410311]
[1726584384375,1.11208354,2351.3,2351.2,0.42525]
[1726584384772,1.11208354,2351.3,2351.2,8.44349311]
[1726584385170,1.11208354,2351.4,2351.3,0.42523]
[1726584385477,1.11208354,2351.4,2351.3,1.72407311]
[1726584385668,2.4695,2351.5,2351.3,1.72407311]
[1726584385669,3.58144715,2351.5,2351.4,0.42521]
[1726584386169,1.11194715,2351.5,2351.4,1.72405311]
[1726584386573,1.11194715,2351.7,2351.4,14.75944311]
[1726584386769,3.52024715,2351.8,2351.4,4.50664311]
[1726584386980,3.52024715,2351.8,2351.6,0.42517]
[1726584386981,3.94538715,2351.8,2351.6,0.42517]
[1726584387167,3.52024715,2351.8,2351.6,0.42517]
[1726584387373,3.94538715,2351.8,2351.6,1.29884311]
[1726584387683,1.11194715,2351.7,2351.6,1.29884311]
[1726584387881,1.53710715,2351.7,2351.6,1.29884311]
[1726584388076,0.42518,2351.6,2351.3,0.42522]
[1726584388378,1.53691194,2351.6,2351.3,0.42522]
[1726584388578,0.42521,2351.4,2351.3,1.29884311]
[1726584388775,1.53693194,2351.5,2351.3,1.72407311]
[1726584389084,1.11172194,2351.5,2351.3,1.72407311]
[1726584389276,1.11172194,2351.5,2351.3,1.72406311]
[1726584389470,1.11172194,2351.6,2351.5,0.42519]
[1726584389676,1.11172194,2351.7,2351.6,0.42517]
[1726584389877,1.11172194,2351.8,2351.4,1.29884311]
[1726584390077,1.11172194,2351.8,2351.7,0.42516]
[1726584390579,1.11172194,2351.9,2351.8,0.42514]
[1726584390886,1.11172194,2351.9,2351.7,1.72399311]
[1726584391078,1.11172194,2351.9,2351.8,0.42514]
[1726584391582,1.11172194,2352.0,2351.8,14.51148311]
[1726584391779,1.74797264,2352.2,2351.9,4.252]
[1726584391982,1.32290264,2352.2,2351.9,0.42511]
[1726584392181,1.11172194,2352.2,2352.0,0.4251]
[1726584392379,7.77452229,2352.3,2352.1,0.42508]
[1726584392380,4.01048194,2352.3,2352.1,0.42508]
[1726584392678,3.58542194,2352.3,2352.1,1.29884311]
[1726584392885,2.77969423,2352.5,2352.3,0.42505]
[1726584393178,0.42501,2352.6,2352.2,6.03806]
[1726584393379,3.41853269,2352.7,2352.3,2.91434]
[1726584393587,1.11172194,2352.6,2352.3,2.91434]
[1726584393776,1.53671194,2352.6,2352.3,4.21318311]
[1726584394083,1.11172194,2352.5,2351.8,3.2078]
[1726584394288,0.42507,2352.2,2351.8,6.99594311]
[1726584394474,1.53679194,2352.2,2351.8,7.42107311]
[1726584394789,0.42511,2352.0,2351.8,6.99594311]
[1726584394975,1.11172194,2352.0,2351.8,1.29884311]
[1726584395288,0.4251,2352.0,2351.8,1.29884311]
[1726584395587,1.53681194,2352.1,2351.8,1.29884311]
[1726584395781,0.42512,2351.9,2351.8,1.29884311]
[1726584396086,5.91082194,2352.0,2351.8,1.29884311]
[1726584396283,3.42012194,2352.0,2351.8,1.29884311]
[1726584396478,1.11172194,2352.2,2351.9,4.252]
[1726584396780,1.11172194,2352.4,2351.9,3.83654311]
[1726584397286,1.11172194,2352.4,2352.1,0.42508]
[1726584397484,1.11172194,2352.4,2352.0,2.4964]
[1726584397685,3.95013194,2352.5,2352.1,0.42508]
[1726584397881,3.52512194,2352.5,2352.2,0.42506]
[1726584398085,3.52512194,2352.5,2352.1,1.72392311]
[1726584398287,3.52512194,2352.5,2352.1,1.29884311]
[1726584398586,1.11172194,2352.6,2352.1,1.29884311]
[1726584398787,3.2078,2352.7,2352.5,0.425]
[1726584399179,3.2078,2352.7,2352.5,1.72384311]
[1726584400188,3.2078,2352.7,2352.5,1.72385311]
[1726584400384,3.2078,2352.7,2352.5,1.29884311]
[1726584400584,3.2078,2352.7,2352.6,0.42499]
[1726584400795,4.31952194,2353.0,2352.6,6.7821]
[1726584401082,3.2078,2353.0,2352.9,0.42494]
[1726584401482,3.2078,2353.0,2352.9,1.29884311]
[1726584403485,2.4014,2353.1,2353.0,0.42492]
[1726584403783,2.4014,2353.1,2352.9,1.72377311]
[1726584404089,2.4014,2353.1,2352.9,1.29884311]
[1726584404481,2.4014,2353.1,2352.9,1.72377311]
[1726584405078,2.82631,2353.1,2352.9,1.72377311]
[1726584405291,2.4014,2353.1,2353.0,0.42492]
[1726584405686,2.4977,2353.3,2353.1,0.4249]
[1726584405991,2.4977,2353.3,2353.0,1.29884311]
[1726584406190,2.4977,2353.3,2353.1,0.42489]
[1726584406388,2.92257,2353.3,2353.0,1.72375311]
[1726584406689,2.4977,2353.3,2353.0,1.72375311]
[1726584406890,0.42489,2353.2,2353.0,1.72376311]
[1726584407188,2.92258,2353.3,2353.0,1.72376311]
[1726584407489,2.92258,2353.3,2353.1,0.4249]
[1726584407893,2.4977,2353.3,2353.1,1.29884311]
[1726584408091,0.42488,2353.2,2353.1,1.29884311]
[1726584409791,0.42494,2352.9,2352.8,0.42494]
[1726584409988,0.42495,2352.9,2352.8,1.72379311]
[1726584410185,0.42495,2352.9,2352.8,1.29884311]
[1726584410389,0.42494,2352.9,2352.8,1.72378311]
[1726584410591,0.42494,2352.9,2352.8,1.29884311]
[1726584411491,0.42494,2352.9,2352.6,0.42499]
[1726584411492,0.42496,2352.8,2352.6,0.42499]
[1726584411795,2.4227,2352.7,2352.6,1.72383311]
[1726584412293,2.3855,2353.1,2352.8,0.42495]
[1726584412595,5.23311,2353.1,2352.6,1.29884311]
[1726584412789,0.42492,2353.0,2352.8,0.42495]
[1726584413092,4.8082,2353.1,2352.7,0.42496]
[1726584413693,0.42493,2353.0,2352.8,0.42495]
[1726584413990,0.42492,2353.0,2352.8,0.42494]
[1726584414196,4.8082,2353.1,2352.8,1.29884311]
[1726584414593,5.23312,2353.1,2352.9,0.42494]
[1726584414789,4.8082,2353.1,2352.9,0.42492]
[1726584414985,4.8082,2353.1,2352.9,1.29884311]
[1726584415185,2.4227,2353.1,2353.0,0.42492]
[1726584415388,2.4227,2353.1,2352.9,1.72377311]
[1726584416299,3.2078,2353.2,2353.0,0.42492]
[1726584416496,2.4456,2353.4,2352.9,1.29884311]
[1726584416695,0.42488,2353.3,2353.0,0.42491]
[1726584416899,0.42487,2353.3,2352.9,1.72377311]
[1726584417096,0.42491,2353.1,2352.9,1.29884311]
[1726584417298,0.4249,2353.2,2352.9,1.72378311]
[1726584417493,0.42487,2353.3,2353.0,0.42491]
[1726584417890,0.42487,2353.3,2353.0,1.72375311]
[1726584418297,0.42487,2353.3,2353.1,0.4249]
[1726584418497,0.42487,2353.3,2353.0,1.72375311]
[1726584419699,0.4249,2353.2,2353.0,1.29884311]
[1726584419899,0.4249,2353.2,2353.0,1.72375311]
[1726584420199,0.4249,2353.1,2353.0,1.29884311]
[1726584420394,0.4249,2353.2,2353.0,1.29884311]
[1726584420591,0.4249,2353.2,2353.0,1.72376311]
[1726584420992,2.4456,2353.4,2353.0,1.29884311]
[1726584421702,4.48259993,2353.9,2353.1,4.09]
[1726584421894,4.48259993,2353.9,2353.2,0.42488]
[1726584421895,2.88696,2353.4,2353.2,0.42488]
[1726584422094,2.88696,2353.4,2353.2,1.72372311]
[1726584422292,3.2078,2353.8,2353.7,0.42479]
[1726584422502,0.214,2354.6,2353.9,0.42476]
[1726584422503,2.4621,2354.0,2353.9,0.42476]
[1726584422698,2.4621,2354.0,2353.7,3.2078]
[1726584422699,2.4621,2354.0,2353.8,2.81957]
[1726584422899,2.4621,2354.0,2353.8,2.3948]
[1726584423305,2.88685,2354.0,2353.8,2.3948]
[1726584423604,2.88684,2354.0,2353.8,2.3948]
[1726584423804,2.4621,2354.0,2353.7,0.42478]
[1726584424002,2.4621,2354.0,2353.4,3.2078]
[1726584424197,0.42476,2353.9,2353.5,0.42481]
[1726584424404,0.42476,2353.9,2353.6,0.42481]
[1726584424608,2.4621,2354.0,2353.6,0.42481]
[1726584424903,2.4621,2354.0,2353.4,5.6026]
[1726584425101,2.4621,2354.0,2353.6,0.4248]
[1726584425102,0.42477,2353.9,2353.6,0.4248]
[1726584425409,2.4621,2354.0,2353.8,0.42477]
[1726584425601,2.4621,2354.0,2353.4,5.6026]
[1726584425899,2.4621,2354.0,2353.9,0.42476]
[1726584426297,1.11172194,2354.5,2353.9,3.2078]
[1726584426498,2.76769,2354.3,2354.0,0.42473]
[1726584426697,2.343,2354.3,2354.0,0.42473]
[1726584426896,2.76769,2354.3,2354.0,0.42473]
[1726584427097,2.343,2354.3,2353.9,3.2078]
[1726584427298,2.343,2354.3,2353.6,7.2978]
[1726584427601,2.343,2354.3,2353.4,2.3948]
[1726584427602,3.2078,2354.0,2353.4,2.3948]
[1726584427799,3.2078,2354.0,2353.3,3.2078]
[1726584427800,1.06213,2353.4,2352.7,3.2078]
[1726584428004,3.2078,2353.8,2353.2,0.42488]
[1726584428005,4.9675,2353.3,2353.2,0.42488]
[1726584428202,0.42481,2353.7,2353.4,0.42484]
[1726584428402,2.98051,2353.7,2353.4,0.42484]
[1726584428599,2.98051,2353.7,2353.4,0.42483]
[1726584428900,2.5557,2353.7,2353.3,3.2078]
[1726584429304,2.5557,2353.7,2353.4,4.09]
[1726584429500,2.5557,2353.7,2353.3,3.2078]
[1726584429815,2.98051,2353.7,2353.4,0.42484]
[1726584430202,2.5557,2353.7,2353.1,8.9918]
[1726584430603,0.42482,2353.6,2353.3,0.42486]
[1726584430910,0.42486,2353.4,2353.1,5.32669]
[1726584431099,0.42487,2353.3,2353.0,3.2078]
[1726584431298,0.42487,2353.3,2353.1,0.4249]
[1726584431506,3.52494,2353.6,2352.9,2.3443]
[1726584431704,0.42487,2353.3,2352.9,2.3443]
[1726584431910,0.42488,2353.2,2353.0,0.42492]
[1726584432099,3.57462194,2353.6,2352.9,2.3443]
[1726584432307,0.42493,2353.0,2352.8,0.42495]
[1726584432608,5.32971,2353.1,2352.9,0.42494]
[1726584432810,4.9048,2353.1,2352.8,0.42494]
[1726584433113,4.9048,2353.1,2352.7,3.2078]
[1726584433319,4.9048,2353.1,2353.0,0.42492]
[1726584433604,9.1544,2353.1,2352.7,3.2078]
[1726584433813,7.07878194,2353.1,2352.4,5.5521]
[1726584434003,0.42494,2352.9,2352.4,3.2078]
[1726584434200,0.425,2352.6,2352.2,0.42506]
[1726584434403,2.17412194,2352.8,2352.1,0.42507]
[1726584434404,0.42503,2352.4,2352.1,0.42507]
[1726584434604,2.5381,2352.5,2352.0,5.6642]
[1726584434904,2.5381,2352.5,2352.3,0.42504]
[1726584435105,2.5381,2352.5,2352.4,0.42503]
[1726584435815,2.5381,2352.5,2352.2,0.42505]
[1726584436012,2.5381,2352.5,2352.0,3.2078]
[1726584436013,2.75293976,2352.5,2352.0,3.2078]
[1726584436204,2.75293976,2352.5,2351.6,4.7848]
[1726584436205,2.17435194,2352.3,2351.6,4.7848]
[1726584436407,1.11172194,2352.2,2351.7,0.42515]
[1726584436712,1.11172194,2352.2,2351.6,2.4564]
[1726584436713,0.42513,2351.9,2351.6,2.4564]
[1726584436908,0.42517,2351.7,2351.5,8.57290297]
[1726584437209,0.42517,2351.7,2351.2,4.09]
[1726584437210,2.4817,2351.8,2351.3,0.42523]
[1726584437410,2.4817,2351.8,2351.2,2.88163]
[1726584437615,0.42523,2351.4,2351.2,2.4564]
[1726584437911,0.42523,2351.4,2351.1,3.2078]
[1726584438113,1.53690194,2351.6,2351.2,0.42524]
[1726584438314,1.53690194,2351.6,2351.2,0.42523]
[1726584438715,0.42518,2351.6,2351.2,0.42523]
[1726584438937,3.59342194,2351.8,2351.1,3.2078]
[1726584439218,0.4252,2351.5,2351.0,0.42528]
[1726584439408,3.2078,2351.7,2350.9,0.42529]
[1726584439606,3.2078,2351.7,2350.8,3.2078]
[1726584439607,1.06299,2351.5,2350.8,3.2078]
[1726584439915,4.31952194,2351.7,2350.9,0.42529]
[1726584439916,0.42523,2351.3,2350.9,0.42529]
[1726584440112,0.42525,2351.2,2350.8,3.63311]
[1726584440319,3.2078,2351.5,2350.8,3.2078]
[1726584440503,1.06294,2351.6,2350.8,3.2078]
[1726584440703,0.42523,2351.3,2350.8,3.6331]
[1726584440906,2.378,2351.2,2350.8,3.2078]
[1726584441313,2.80325,2351.2,2350.8,3.63311]
[1726584441713,2.378,2351.2,2350.8,3.2078]
[1726584442012,2.80325,2351.2,2350.8,3.63312]
[1726584442410,0.42527,2351.1,2350.8,3.2078]
[1726584442610,2.378,2351.2,2350.4,7.2978]
[1726584442815,2.5511,2351.1,2350.4,7.2978]
[1726584443010,2.97637,2351.1,2350.7,0.42533]
[1726584443211,0.42529,2351.0,2350.7,0.42533]
[1726584443420,0.42529,2351.0,2350.6,0.42534]
[1726584443613,2.97638,2351.1,2350.4,7.2978]
[1726584443813,0.42529,2351.0,2350.7,0.42533]
[1726584444121,2.97638,2351.1,2350.7,0.42533]
[1726584444324,0.42528,2351.0,2350.7,0.42533]
[1726584444820,2.5511,2351.1,2350.8,0.42532]
[1726584445015,2.5511,2351.1,2350.9,0.42529]
[1726584445321,2.97637,2351.1,2350.8,0.42531]
[1726584445623,2.97637,2351.1,2350.4,7.2978]
[1726584446018,2.5511,2351.1,2350.6,0.42534]
[1726584446223,0.4253,2351.0,2350.7,0.42534]
[1726584446418,0.42531,2350.9,2350.6,0.42534]
[1726584446619,2.5511,2351.1,2350.6,0.42535]
[1726584446823,2.5511,2351.1,2350.4,7.2978]
[1726584447022,0.4253,2350.9,2350.7,0.42533]
[1726584447324,0.4253,2350.9,2350.5,0.42536]
[1726584447325,1.06326,2350.9,2350.5,0.42536]
[1726584447516,0.42531,2350.9,2350.7,0.42533]